[Event "Titled Tuesday Blitz December 06 Late 2022"]
[White "Martin Carmona, Gaston Manuel"]
[Black "Slovineanu"]
[WhiteFideId "22284567"]
[WhiteElo "2235"]
[BlackElo "2284"]
[Result "1-0"]
[Round "06"]
[TimeControl "180+1"]
[Date "2022.12.07"]
[WhiteClock "0:00:59"]
[BlackClock "0:00:17"]

1. e4 {[%clk 0:02:35]}  c6 {[%clk 0:02:59]} 2. Nf3 {[%clk 0:02:29]}  d5 {[%clk 0:02:57]} 3. d3 {[%clk 0:02:29]}  Qc7 {[%clk 0:02:44]} 4. g3 {[%clk 0:02:28]}  e5 {[%clk 0:02:41]} 5. Bg2 {[%clk 0:02:26]}  Nf6 {[%clk 0:02:40]} 6. O-O {[%clk 0:02:27]}  Bd6 {[%clk 0:02:38]} 7. Nc3 {[%clk 0:02:24]}  d4 {[%clk 0:02:31]} 8. Ne2 {[%clk 0:02:22]}  O-O {[%clk 0:02:28]} 9. Nd2 {[%clk 0:02:22]}  Nbd7 {[%clk 0:02:19]} 10. f4 {[%clk 0:02:22]}  Ng4 {[%clk 0:02:16]} 11. Nc4 {[%clk 0:02:19]}  b5 {[%clk 0:02:07]} 12. Nxd6 {[%clk 0:02:18]}  Qxd6 {[%clk 0:02:07]} 13. h3 {[%clk 0:02:18]}  Ne3 {[%clk 0:02:03]} 14. Bxe3 {[%clk 0:02:18]}  dxe3 {[%clk 0:02:03]} 15. Qc1 {[%clk 0:02:18]}  exf4 {[%clk 0:01:38]} 16. gxf4 {[%clk 0:02:18]}  Qc5 {[%clk 0:01:24]} 17. d4 {[%clk 0:02:16]}  Qc4 {[%clk 0:01:17]} 18. Qxe3 {[%clk 0:02:05]}  Qxc2 {[%clk 0:01:17]} 19. b3 {[%clk 0:02:02]}  Nf6 {[%clk 0:01:11]} 20. Rac1 {[%clk 0:01:50]}  Qxa2 {[%clk 0:01:11]} 21. Rxc6 {[%clk 0:01:50]}  Be6 {[%clk 0:00:58]} 22. d5 {[%clk 0:01:45]}  Bxd5 {[%clk 0:00:58]} 23. Nc1 {[%clk 0:01:14]}  Qxg2+ {[%clk 0:00:53]} 24. Kxg2 {[%clk 0:01:13]}  Bxe4+ {[%clk 0:00:52]} 25. Kh2 {[%clk 0:01:12]}  Bxc6 {[%clk 0:00:52]} 26. Rg1 {[%clk 0:01:06]}  a5 {[%clk 0:00:44]} 27. Qc3 {[%clk 0:01:06]}  Be4 {[%clk 0:00:23]} 28. Qxf6 {[%clk 0:01:04]}  g6 {[%clk 0:00:23]} 29. f5 {[%clk 0:01:00]}  a4 {[%clk 0:00:22]} 30. bxa4 {[%clk 0:00:59]}  bxa4 {[%clk 0:00:22]} 31. fxg6 {[%clk 0:01:00]}  hxg6 {[%clk 0:00:17]} 32. Rg4 {[%clk 0:00:59]} 1-0


[Site "https://www.chess.com"]

[Event "Titled Tuesday Blitz December 06 Late 2022"]
[White "Mazurkiewicz, Michal"]
[Black "Aghasiyev, Kamal"]
[WhiteFideId "1124943"]
[BlackFideId "13402854"]
[WhiteElo "2081"]
[BlackElo "2341"]
[Result "0-1"]
[Round "06"]
[TimeControl "180+1"]
[Date "2022.12.07"]
[WhiteClock "0:00:35"]
[BlackClock "0:01:03"]

1. e4 {[%clk 0:03:00]}  e5 {[%clk 0:02:59]} 2. Nf3 {[%clk 0:02:51]}  Nc6 {[%clk 0:02:58]} 3. d3 {[%clk 0:02:52]}  Nf6 {[%clk 0:02:52]} 4. g3 {[%clk 0:02:52]}  d5 {[%clk 0:02:41]} 5. exd5 {[%clk 0:02:53]}  Nxd5 {[%clk 0:02:37]} 6. Bg2 {[%clk 0:02:54]}  Bc5 {[%clk 0:02:37]} 7. O-O {[%clk 0:02:54]}  O-O {[%clk 0:02:37]} 8. Nxe5 {[%clk 0:02:54]}  Nxe5 {[%clk 0:02:34]} 9. d4 {[%clk 0:02:54]}  Bg4 {[%clk 0:02:17]} 10. f3 {[%clk 0:02:49]}  Nb4 {[%clk 0:01:58]} 11. dxc5 {[%clk 0:01:35]}  Qxd1 {[%clk 0:01:53]} 12. Rxd1 {[%clk 0:01:36]}  Nxf3+ {[%clk 0:01:46]} 13. Kf2 {[%clk 0:01:35]}  Ne5 {[%clk 0:01:28]} 14. Re1 {[%clk 0:01:32]}  Rfe8 {[%clk 0:01:18]} 15. Na3 {[%clk 0:01:27]}  Ned3+ {[%clk 0:01:07]} 16. cxd3 {[%clk 0:01:17]}  Nxd3+ {[%clk 0:01:07]} 17. Kg1 {[%clk 0:00:54]}  Rxe1+ {[%clk 0:01:06]} 18. Bf1 {[%clk 0:00:55]}  Bh3 {[%clk 0:01:04]} 19. Bd2 {[%clk 0:00:35]}  Rxa1 {[%clk 0:01:03]} 0-1


[Site "https://www.chess.com"]

[Event "Titled Tuesday Blitz December 06 Late 2022"]
[White "Mladek, Richard"]
[Black "Storey, Charles H"]
[WhiteFideId "386588"]
[BlackFideId "406686"]
[WhiteElo "2271"]
[BlackElo "2251"]
[Result "1-0"]
[Round "06"]
[TimeControl "180+1"]
[Date "2022.12.07"]
[WhiteClock "0:00:38"]
[BlackClock "0:00:04"]

1. d4 {[%clk 0:03:00]}  g6 {[%clk 0:02:59]} 2. h4 {[%clk 0:02:58]}  Bg7 {[%clk 0:02:58]} 3. h5 {[%clk 0:02:57]}  c5 {[%clk 0:02:58]} 4. Nf3 {[%clk 0:02:48]}  cxd4 {[%clk 0:02:56]} 5. h6 {[%clk 0:02:47]}  Bf6 {[%clk 0:02:52]} 6. Nxd4 {[%clk 0:02:47]}  Nc6 {[%clk 0:02:52]} 7. c3 {[%clk 0:02:33]}  Qb6 {[%clk 0:02:46]} 8. Nb3 {[%clk 0:02:30]}  d6 {[%clk 0:02:32]} 9. e4 {[%clk 0:02:26]}  Qc7 {[%clk 0:02:22]} 10. Na3 {[%clk 0:02:26]}  Bd7 {[%clk 0:02:18]} 11. Be3 {[%clk 0:02:23]}  Ne5 {[%clk 0:02:06]} 12. f3 {[%clk 0:02:18]}  a6 {[%clk 0:01:58]} 13. Qd2 {[%clk 0:02:10]}  b5 {[%clk 0:01:53]} 14. Be2 {[%clk 0:02:01]}  Be6 {[%clk 0:01:46]} 15. Nd4 {[%clk 0:01:58]}  Bc4 {[%clk 0:01:40]} 16. Nac2 {[%clk 0:01:42]}  Bxe2 {[%clk 0:01:32]} 17. Qxe2 {[%clk 0:01:43]}  Nc4 {[%clk 0:01:31]} 18. Nb4 {[%clk 0:01:37]}  e6 {[%clk 0:01:26]} 19. O-O-O {[%clk 0:01:27]}  Ne7 {[%clk 0:01:22]} 20. Kb1 {[%clk 0:01:27]}  O-O {[%clk 0:01:16]} 21. f4 {[%clk 0:01:25]}  Rfb8 {[%clk 0:00:56]} 22. f5 {[%clk 0:01:21]}  a5 {[%clk 0:00:41]} 23. Nd3 {[%clk 0:01:13]}  exf5 {[%clk 0:00:20]} 24. exf5 {[%clk 0:01:13]}  Bxd4 {[%clk 0:00:20]} 25. Bxd4 {[%clk 0:01:11]}  Nxf5 {[%clk 0:00:21]} 26. Nf4 {[%clk 0:01:10]}  Re8 {[%clk 0:00:17]} 27. Qf3 {[%clk 0:01:06]}  Ne5 {[%clk 0:00:14]} 28. Qe2 {[%clk 0:00:59]}  b4 {[%clk 0:00:13]} 29. Nd5 {[%clk 0:00:58]}  Qb7 {[%clk 0:00:11]} 30. Nf6+ {[%clk 0:00:58]}  Kh8 {[%clk 0:00:12]} 31. Nxe8 {[%clk 0:00:55]}  Rxe8 {[%clk 0:00:13]} 32. Rhe1 {[%clk 0:00:54]}  bxc3 {[%clk 0:00:12]} 33. Bxc3 {[%clk 0:00:54]}  f6 {[%clk 0:00:12]} 34. g4 {[%clk 0:00:52]}  Nxh6 {[%clk 0:00:11]} 35. g5 {[%clk 0:00:50]}  Nhf7 {[%clk 0:00:10]} 36. gxf6 {[%clk 0:00:50]}  a4 {[%clk 0:00:10]} 37. a3 {[%clk 0:00:50]}  h5 {[%clk 0:00:08]} 38. Rh1 {[%clk 0:00:47]}  Kh7 {[%clk 0:00:07]} 39. Rxh5+ {[%clk 0:00:47]}  gxh5 {[%clk 0:00:06]} 40. Qxh5+ {[%clk 0:00:48]}  Nh6 {[%clk 0:00:07]} 41. Rh1 {[%clk 0:00:42]}  Nf7 {[%clk 0:00:06]} 42. Qf5+ {[%clk 0:00:37]}  Kh8 {[%clk 0:00:04]} 43. Rxh6+ {[%clk 0:00:37]}  Nxh6 {[%clk 0:00:04]} 44. f7+ {[%clk 0:00:38]} 1-0


[Site "https://www.chess.com"]

[Event "Titled Tuesday Blitz December 06 Late 2022"]
[White "Nasuta, Grzegorz"]
[Black "Rosenthal, Nicholas"]
[WhiteFideId "1141686"]
[BlackFideId "2045150"]
[WhiteElo "2441"]
[BlackElo "2182"]
[Result "0-1"]
[Round "06"]
[TimeControl "180+1"]
[Date "2022.12.06"]
[WhiteClock "0:00:10"]
[BlackClock "0:01:50"]

1. e4 {[%clk 0:03:00]}  e6 {[%clk 0:02:59]} 2. d4 {[%clk 0:03:00]}  d5 {[%clk 0:02:59]} 3. Nc3 {[%clk 0:03:00]}  Nf6 {[%clk 0:03:00]} 4. Bg5 {[%clk 0:02:59]}  Be7 {[%clk 0:02:59]} 5. e5 {[%clk 0:02:59]}  Nfd7 {[%clk 0:03:00]} 6. h4 {[%clk 0:02:54]}  Bxg5 {[%clk 0:02:59]} 7. hxg5 {[%clk 0:02:55]}  Qxg5 {[%clk 0:03:00]} 8. Nh3 {[%clk 0:02:55]}  Qe7 {[%clk 0:03:00]} 9. Qg4 {[%clk 0:02:54]}  g6 {[%clk 0:02:59]} 10. Ng5 {[%clk 0:02:54]}  h5 {[%clk 0:02:59]} 11. Qf4 {[%clk 0:02:54]}  Nc6 {[%clk 0:02:56]} 12. O-O-O {[%clk 0:02:51]}  Nb6 {[%clk 0:02:55]} 13. Rh4 {[%clk 0:02:40]}  Bd7 {[%clk 0:02:53]} 14. g4 {[%clk 0:02:20]}  O-O-O {[%clk 0:02:51]} 15. gxh5 {[%clk 0:02:19]}  gxh5 {[%clk 0:02:49]} 16. Be2 {[%clk 0:02:16]}  Rdf8 {[%clk 0:02:43]} 17. Qf6 {[%clk 0:01:53]}  Qxf6 {[%clk 0:02:36]} 18. exf6 {[%clk 0:01:54]}  Rh6 {[%clk 0:02:36]} 19. Rxh5 {[%clk 0:01:54]}  Rg6 {[%clk 0:02:30]} 20. Bd3 {[%clk 0:01:49]}  Rgg8 {[%clk 0:02:26]} 21. Ne2 {[%clk 0:01:42]}  e5 {[%clk 0:02:25]} 22. Bh7 {[%clk 0:01:28]}  Bg4 {[%clk 0:02:12]} 23. Rh4 {[%clk 0:00:23]}  Bxe2 {[%clk 0:02:08]} 24. Bxg8 {[%clk 0:00:23]}  Rxg8 {[%clk 0:02:06]} 25. Re1 {[%clk 0:00:19]}  Rxg5 {[%clk 0:02:05]} 26. Rxe2 {[%clk 0:00:19]}  Nxd4 {[%clk 0:02:05]} 27. Re1 {[%clk 0:00:18]}  Kd7 {[%clk 0:02:03]} 28. Rh8 {[%clk 0:00:17]}  Rf5 {[%clk 0:02:02]} 29. Rb8 {[%clk 0:00:15]}  Nc6 {[%clk 0:01:59]} 30. Rf8 {[%clk 0:00:14]}  Rxf6 {[%clk 0:01:58]} 31. Re2 {[%clk 0:00:13]}  e4 {[%clk 0:01:56]} 32. c3 {[%clk 0:00:13]}  Ne5 {[%clk 0:01:56]} 33. Rh8 {[%clk 0:00:13]}  Nd3+ {[%clk 0:01:54]} 34. Kc2 {[%clk 0:00:13]}  Nxf2 {[%clk 0:01:53]} 35. Rh5 {[%clk 0:00:12]}  Ke6 {[%clk 0:01:52]} 36. Rh2 {[%clk 0:00:12]}  Ng4 {[%clk 0:01:52]} 37. Rh4 {[%clk 0:00:12]}  Ne5 {[%clk 0:01:52]} 38. b3 {[%clk 0:00:11]}  c5 {[%clk 0:01:51]} 39. Rh1 {[%clk 0:00:10]}  Rf4 {[%clk 0:01:49]} 40. Rh6+ {[%clk 0:00:10]}  f6 {[%clk 0:01:50]} 41. Rh1 {[%clk 0:00:10]}  d4 {[%clk 0:01:50]} 0-1


[Site "https://www.chess.com"]

[Event "Titled Tuesday Blitz December 06 Late 2022"]
[White "Nepo"]
[Black "Torres Dominguez, David"]
[BlackFideId "2220857"]
[WhiteElo "2213"]
[BlackElo "2037"]
[Result "0-1"]
[Round "06"]
[TimeControl "180+1"]
[Date "2022.12.07"]
[WhiteClock "0:01:05"]
[BlackClock "0:00:13"]

1. e4 {[%clk 0:03:00]}  Nc6 {[%clk 0:02:59]} 2. Nf3 {[%clk 0:03:01]}  e5 {[%clk 0:02:59]} 3. Bb5 {[%clk 0:02:59]}  Nge7 {[%clk 0:02:59]} 4. O-O {[%clk 0:02:59]}  g6 {[%clk 0:02:58]} 5. d4 {[%clk 0:02:58]}  exd4 {[%clk 0:02:59]} 6. Nxd4 {[%clk 0:02:59]}  Bg7 {[%clk 0:02:59]} 7. c3 {[%clk 0:02:59]}  Nxd4 {[%clk 0:02:57]} 8. cxd4 {[%clk 0:02:59]}  c6 {[%clk 0:02:58]} 9. Ba4 {[%clk 0:02:56]}  d5 {[%clk 0:02:57]} 10. e5 {[%clk 0:02:55]}  O-O {[%clk 0:02:56]} 11. Nc3 {[%clk 0:02:54]}  f6 {[%clk 0:02:56]} 12. f4 {[%clk 0:02:53]}  fxe5 {[%clk 0:02:52]} 13. fxe5 {[%clk 0:02:54]}  Rxf1+ {[%clk 0:02:49]} 14. Qxf1 {[%clk 0:02:54]}  Qb6 {[%clk 0:02:48]} 15. Qf2 {[%clk 0:02:51]}  Nf5 {[%clk 0:02:40]} 16. Be3 {[%clk 0:02:44]}  Bxe5 {[%clk 0:02:37]} 17. Rd1 {[%clk 0:02:39]}  Bg7 {[%clk 0:02:27]} 18. Bb3 {[%clk 0:02:36]}  Nxe3 {[%clk 0:02:16]} 19. Qxe3 {[%clk 0:02:35]}  Bg4 {[%clk 0:02:10]} 20. Rd2 {[%clk 0:02:33]}  Rf8 {[%clk 0:02:06]} 21. h3 {[%clk 0:02:30]}  Bc8 {[%clk 0:02:02]} 22. Na4 {[%clk 0:02:29]}  Qb4 {[%clk 0:01:48]} 23. a3 {[%clk 0:02:25]}  Qd6 {[%clk 0:01:44]} 24. Nc5 {[%clk 0:02:18]}  Qf4 {[%clk 0:01:35]} 25. Qxf4 {[%clk 0:01:57]}  Rxf4 {[%clk 0:01:35]} 26. Nd3 {[%clk 0:01:56]}  Rxd4 {[%clk 0:01:28]} 27. Bc2 {[%clk 0:01:56]}  Bf5 {[%clk 0:01:26]} 28. g4 {[%clk 0:01:54]}  Bxd3 {[%clk 0:01:25]} 29. Bxd3 {[%clk 0:01:52]}  c5 {[%clk 0:01:08]} 30. Rd1 {[%clk 0:01:52]}  c4 {[%clk 0:01:07]} 31. Be2 {[%clk 0:01:52]}  Rxd1+ {[%clk 0:01:07]} 32. Bxd1 {[%clk 0:01:53]}  Bxb2 {[%clk 0:01:06]} 33. Bf3 {[%clk 0:01:52]}  c3 {[%clk 0:01:05]} 34. Bxd5+ {[%clk 0:01:51]}  Kg7 {[%clk 0:01:01]} 35. Bb3 {[%clk 0:01:52]}  g5 {[%clk 0:00:59]} 36. a4 {[%clk 0:01:51]}  Kf6 {[%clk 0:00:58]} 37. Kf2 {[%clk 0:01:51]}  Ke5 {[%clk 0:00:59]} 38. Ke3 {[%clk 0:01:52]}  b6 {[%clk 0:00:56]} 39. Bc2 {[%clk 0:01:51]}  h6 {[%clk 0:00:55]} 40. Bf5 {[%clk 0:01:46]}  Kd5 {[%clk 0:00:53]} 41. Kd3 {[%clk 0:01:46]}  Kc5 {[%clk 0:00:51]} 42. Kc2 {[%clk 0:01:44]}  Kb4 {[%clk 0:00:50]} 43. Bd7 {[%clk 0:01:45]}  a6 {[%clk 0:00:50]} 44. Be8 {[%clk 0:01:43]}  b5 {[%clk 0:00:48]} 45. axb5 {[%clk 0:01:43]}  axb5 {[%clk 0:00:49]} 46. Bd7 {[%clk 0:01:44]}  Kc4 {[%clk 0:00:47]} 47. Be6+ {[%clk 0:01:44]}  Kd4 {[%clk 0:00:46]} 48. Kb3 {[%clk 0:01:43]}  b4 {[%clk 0:00:42]} 49. Bf5 {[%clk 0:01:41]}  Ba3 {[%clk 0:00:42]} 50. Kc2 {[%clk 0:01:39]}  Ke3 {[%clk 0:00:42]} 51. Bd3 {[%clk 0:01:30]}  Kf3 {[%clk 0:00:19]} 52. Kb3 {[%clk 0:01:26]}  Kg2 {[%clk 0:00:19]} 53. Bf5 {[%clk 0:01:21]}  Kxh3 {[%clk 0:00:19]} 54. Kc2 {[%clk 0:01:21]}  Kh4 {[%clk 0:00:19]} 55. Kd3 {[%clk 0:01:20]}  h5 {[%clk 0:00:20]} 56. gxh5 {[%clk 0:01:20]}  Kxh5 {[%clk 0:00:21]} 57. Ke2 {[%clk 0:01:15]}  Kh4 {[%clk 0:00:21]} 58. Bc2 {[%clk 0:01:15]}  g4 {[%clk 0:00:20]} 59. Kf2 {[%clk 0:01:15]}  g3+ {[%clk 0:00:18]} 60. Kg2 {[%clk 0:01:15]}  Bc1 {[%clk 0:00:18]} 61. Bb3 {[%clk 0:01:15]}  Be3 {[%clk 0:00:17]} 62. Kf3 {[%clk 0:01:15]}  Bf2 {[%clk 0:00:18]} 63. Bc2 {[%clk 0:01:15]}  Kh3 {[%clk 0:00:16]} 64. Ke2 {[%clk 0:01:06]}  g2 {[%clk 0:00:12]} 65. Kxf2 {[%clk 0:01:05]}  Kh2 {[%clk 0:00:13]} 0-1


[Site "https://www.chess.com"]

[Event "Titled Tuesday Blitz December 06 Late 2022"]
[White "Osmonbekov, Talaibek"]
[Black "Petrovic, Aleksa"]
[WhiteFideId "2017253"]
[BlackFideId "967629"]
[WhiteElo "2135"]
[BlackElo "2230"]
[Result "0-1"]
[Round "06"]
[TimeControl "180+1"]
[Date "2022.12.07"]
[WhiteClock "0:00:02"]
[BlackClock "0:01:06"]

1. d4 {[%clk 0:03:00]}  Nf6 {[%clk 0:02:58]} 2. Bf4 {[%clk 0:02:59]}  e6 {[%clk 0:02:58]} 3. Nc3 {[%clk 0:02:58]}  c5 {[%clk 0:02:57]} 4. e3 {[%clk 0:02:57]}  b6 {[%clk 0:02:50]} 5. Nb5 {[%clk 0:02:46]}  Nd5 {[%clk 0:02:36]} 6. Bd6 {[%clk 0:02:32]}  a6 {[%clk 0:02:23]} 7. Bxf8 {[%clk 0:02:26]}  Kxf8 {[%clk 0:02:23]} 8. Nd6 {[%clk 0:02:17]}  cxd4 {[%clk 0:02:14]} 9. exd4 {[%clk 0:01:57]}  Qc7 {[%clk 0:02:09]} 10. Nxc8 {[%clk 0:01:55]}  Qxc8 {[%clk 0:02:10]} 11. Nf3 {[%clk 0:01:55]}  Nc6 {[%clk 0:02:06]} 12. c4 {[%clk 0:01:51]}  Nf6 {[%clk 0:02:04]} 13. Bd3 {[%clk 0:01:49]}  d5 {[%clk 0:01:59]} 14. Rc1 {[%clk 0:01:47]}  Nb4 {[%clk 0:01:53]} 15. Bb1 {[%clk 0:01:11]}  dxc4 {[%clk 0:01:50]} 16. Qa4 {[%clk 0:01:06]}  Nbd5 {[%clk 0:01:38]} 17. Rxc4 {[%clk 0:01:01]}  Qb7 {[%clk 0:01:25]} 18. O-O {[%clk 0:00:56]}  g6 {[%clk 0:01:22]} 19. Ne5 {[%clk 0:00:33]}  Kg7 {[%clk 0:01:17]} 20. Qc6 {[%clk 0:00:28]}  Qe7 {[%clk 0:01:14]} 21. Rfc1 {[%clk 0:00:19]}  Rhc8 {[%clk 0:01:08]} 22. Qxc8 {[%clk 0:00:19]}  Rxc8 {[%clk 0:01:09]} 23. Rxc8 {[%clk 0:00:19]}  Qb4 {[%clk 0:01:08]} 24. Nf3 {[%clk 0:00:02]}  Qxb2 {[%clk 0:01:06]} 0-1


[Site "https://www.chess.com"]

[Event "Titled Tuesday Blitz December 06 Late 2022"]
[White "Pakleza, Zbigniew"]
[Black "Womacka, Mathias"]
[WhiteFideId "1119290"]
[BlackFideId "4611390"]
[WhiteElo "2410"]
[BlackElo "2377"]
[Result "1-0"]
[Round "06"]
[TimeControl "180+1"]
[Date "2022.12.06"]
[WhiteClock "0:00:10"]
[BlackClock "0:00:12"]

1. d4 {[%clk 0:03:00]}  Nf6 {[%clk 0:02:57]} 2. Nf3 {[%clk 0:03:00]}  e6 {[%clk 0:02:57]} 3. Bf4 {[%clk 0:03:00]}  c5 {[%clk 0:02:56]} 4. c3 {[%clk 0:03:01]}  d5 {[%clk 0:02:55]} 5. e3 {[%clk 0:03:01]}  Bd6 {[%clk 0:02:55]} 6. Bg3 {[%clk 0:03:02]}  O-O {[%clk 0:02:54]} 7. Nbd2 {[%clk 0:03:02]}  Qc7 {[%clk 0:02:53]} 8. Be2 {[%clk 0:03:03]}  Nbd7 {[%clk 0:02:52]} 9. c4 {[%clk 0:03:03]}  cxd4 {[%clk 0:02:42]} 10. Nxd4 {[%clk 0:03:03]}  Bxg3 {[%clk 0:02:36]} 11. hxg3 {[%clk 0:03:04]}  dxc4 {[%clk 0:02:32]} 12. Nxc4 {[%clk 0:03:05]}  Ne5 {[%clk 0:02:19]} 13. Nb5 {[%clk 0:02:49]}  Qc5 {[%clk 0:02:19]} 14. Nxe5 {[%clk 0:02:17]}  Qxe5 {[%clk 0:02:20]} 15. Qd4 {[%clk 0:01:26]}  Qxd4 {[%clk 0:02:16]} 16. Nxd4 {[%clk 0:01:27]}  Bd7 {[%clk 0:02:15]} 17. Bf3 {[%clk 0:01:23]}  Rac8 {[%clk 0:02:08]} 18. Rd1 {[%clk 0:01:06]}  e5 {[%clk 0:01:50]} 19. Nb3 {[%clk 0:01:04]}  Be6 {[%clk 0:01:37]} 20. Bxb7 {[%clk 0:00:45]}  Bxb3 {[%clk 0:01:28]} 21. axb3 {[%clk 0:00:41]}  Rb8 {[%clk 0:01:23]} 22. Ba6 {[%clk 0:00:33]}  Rxb3 {[%clk 0:01:22]} 23. O-O {[%clk 0:00:24]}  Rxb2 {[%clk 0:01:21]} 24. Ra1 {[%clk 0:00:21]}  Rfb8 {[%clk 0:01:13]} 25. Ra5 {[%clk 0:00:14]}  e4 {[%clk 0:00:48]} 26. Bc4 {[%clk 0:00:13]}  Rb1 {[%clk 0:00:46]} 27. Rxa7 {[%clk 0:00:11]}  Rxf1+ {[%clk 0:00:45]} 28. Kxf1 {[%clk 0:00:12]}  Rb1+ {[%clk 0:00:19]} 29. Ke2 {[%clk 0:00:12]}  Rb2+ {[%clk 0:00:20]} 30. Ke1 {[%clk 0:00:12]}  Rb1+ {[%clk 0:00:12]} 31. Kd2 {[%clk 0:00:11]}  Ng4 {[%clk 0:00:12]} 32. Ra8+ {[%clk 0:00:10]} 1-0


[Site "https://www.chess.com"]

[Event "Titled Tuesday Blitz December 06 Late 2022"]
[White "Paravyan, David"]
[Black "Quizon, Daniel"]
[WhiteFideId "4194985"]
[BlackFideId "5217911"]
[WhiteElo "2551"]
[BlackElo "2385"]
[Result "1-0"]
[Round "06"]
[TimeControl "180+1"]
[Date "2022.12.06"]
[WhiteClock "0:01:16"]
[BlackClock "0:00:13"]

1. e4 {[%clk 0:03:00]}  c5 {[%clk 0:02:58]} 2. Nf3 {[%clk 0:03:01]}  d6 {[%clk 0:02:58]} 3. d4 {[%clk 0:03:01]}  cxd4 {[%clk 0:02:59]} 4. Nxd4 {[%clk 0:03:02]}  Nf6 {[%clk 0:03:00]} 5. Nc3 {[%clk 0:03:02]}  a6 {[%clk 0:03:00]} 6. Bg5 {[%clk 0:03:03]}  e6 {[%clk 0:02:59]} 7. f4 {[%clk 0:03:03]}  Nbd7 {[%clk 0:02:58]} 8. Qf3 {[%clk 0:02:58]}  h6 {[%clk 0:02:56]} 9. Bh4 {[%clk 0:02:57]}  Qc7 {[%clk 0:02:46]} 10. Be2 {[%clk 0:02:56]}  b5 {[%clk 0:02:46]} 11. e5 {[%clk 0:02:47]}  Bb7 {[%clk 0:02:31]} 12. Nxe6 {[%clk 0:02:47]}  Qb6 {[%clk 0:01:28]} 13. Qh3 {[%clk 0:02:36]}  dxe5 {[%clk 0:01:21]} 14. Nxf8 {[%clk 0:02:20]}  Kxf8 {[%clk 0:01:20]} 15. O-O-O {[%clk 0:01:55]}  g5 {[%clk 0:00:46]} 16. Bxg5 {[%clk 0:01:52]}  exf4 {[%clk 0:00:40]} 17. Bxf4 {[%clk 0:01:42]}  Qe6 {[%clk 0:00:35]} 18. Bd6+ {[%clk 0:01:37]}  Ke8 {[%clk 0:00:26]} 19. Qh4 {[%clk 0:01:25]}  Ne4 {[%clk 0:00:18]} 20. Bg4 {[%clk 0:01:16]}  f5 {[%clk 0:00:13]} 21. Bh5+ {[%clk 0:01:16]} 1-0


[Site "https://www.chess.com"]

[Event "Titled Tuesday Blitz December 06 Late 2022"]
[White "Pein, Jonathan"]
[Black "Adla, Diego"]
[WhiteFideId "417092"]
[BlackFideId "100072"]
[WhiteElo "2225"]
[BlackElo "2377"]
[Result "0-1"]
[Round "06"]
[TimeControl "180+1"]
[Date "2022.12.07"]
[WhiteClock "0:00:09"]
[BlackClock "0:00:17"]

1. e4 {[%clk 0:02:58]}  e5 {[%clk 0:02:57]} 2. Nf3 {[%clk 0:02:54]}  Nc6 {[%clk 0:02:53]} 3. Nc3 {[%clk 0:02:55]}  Nf6 {[%clk 0:02:53]} 4. g3 {[%clk 0:02:55]}  d5 {[%clk 0:02:52]} 5. exd5 {[%clk 0:02:56]}  Nd4 {[%clk 0:02:52]} 6. Bg2 {[%clk 0:02:57]}  Bg4 {[%clk 0:02:53]} 7. h3 {[%clk 0:02:56]}  Bxf3 {[%clk 0:02:51]} 8. Bxf3 {[%clk 0:02:56]}  Nxf3+ {[%clk 0:02:52]} 9. Qxf3 {[%clk 0:02:57]}  Qd7 {[%clk 0:02:52]} 10. d3 {[%clk 0:02:48]}  Bb4 {[%clk 0:02:46]} 11. Bd2 {[%clk 0:02:42]}  O-O-O {[%clk 0:02:44]} 12. O-O-O {[%clk 0:02:35]}  Nxd5 {[%clk 0:02:38]} 13. Nxd5 {[%clk 0:02:26]}  Bxd2+ {[%clk 0:02:38]} 14. Kxd2 {[%clk 0:02:22]}  Qxd5 {[%clk 0:02:38]} 15. Qxd5 {[%clk 0:02:20]}  Rxd5 {[%clk 0:02:37]} 16. Rde1 {[%clk 0:02:21]}  f6 {[%clk 0:02:29]} 17. Re4 {[%clk 0:02:20]}  Rhd8 {[%clk 0:02:29]} 18. Rhe1 {[%clk 0:02:19]}  g5 {[%clk 0:02:23]} 19. h4 {[%clk 0:02:13]}  h6 {[%clk 0:02:20]} 20. hxg5 {[%clk 0:02:13]}  hxg5 {[%clk 0:02:19]} 21. Rh1 {[%clk 0:02:14]}  R8d6 {[%clk 0:02:10]} 22. Rh8+ {[%clk 0:02:09]}  Rd8 {[%clk 0:02:04]} 23. Rh7 {[%clk 0:02:06]}  R5d7 {[%clk 0:02:01]} 24. Rh6 {[%clk 0:02:00]}  Rf7 {[%clk 0:01:57]} 25. g4 {[%clk 0:01:56]}  Kd7 {[%clk 0:01:53]} 26. Ke3 {[%clk 0:01:41]}  Ke6 {[%clk 0:01:52]} 27. c3 {[%clk 0:01:32]}  c5 {[%clk 0:01:51]} 28. Kd2 {[%clk 0:01:20]}  Rd6 {[%clk 0:01:45]} 29. Kc2 {[%clk 0:01:03]}  b5 {[%clk 0:01:39]} 30. a4 {[%clk 0:01:01]}  a6 {[%clk 0:01:25]} 31. Rh8 {[%clk 0:01:01]}  Rfd7 {[%clk 0:01:20]} 32. Re3 {[%clk 0:00:57]}  Rd8 {[%clk 0:01:14]} 33. Rh6 {[%clk 0:00:45]}  c4 {[%clk 0:01:03]} 34. d4 {[%clk 0:00:43]}  Rd5 {[%clk 0:01:03]} 35. Rf3 {[%clk 0:00:42]}  Rf8 {[%clk 0:01:00]} 36. axb5 {[%clk 0:00:32]}  axb5 {[%clk 0:00:57]} 37. Re3 {[%clk 0:00:31]}  b4 {[%clk 0:00:53]} 38. dxe5 {[%clk 0:00:29]}  b3+ {[%clk 0:00:49]} 39. Kc1 {[%clk 0:00:26]}  Rxe5 {[%clk 0:00:35]} 40. Kd2 {[%clk 0:00:26]}  Rd8+ {[%clk 0:00:33]} 41. Ke2 {[%clk 0:00:27]}  Rxe3+ {[%clk 0:00:30]} 42. fxe3 {[%clk 0:00:24]}  Ra8 {[%clk 0:00:27]} 43. Rh2 {[%clk 0:00:18]}  Ra1 {[%clk 0:00:25]} 44. Rf2 {[%clk 0:00:10]}  Rc1 {[%clk 0:00:20]} 45. e4 {[%clk 0:00:08]}  Ke5 {[%clk 0:00:19]} 46. Ke3 {[%clk 0:00:05]}  Re1+ {[%clk 0:00:18]} 47. Kf3 {[%clk 0:00:05]}  Rxe4 {[%clk 0:00:18]} 48. Rd2 {[%clk 0:00:06]}  Re1 {[%clk 0:00:16]} 49. Rd4 {[%clk 0:00:06]}  Rb1 {[%clk 0:00:16]} 50. Rxc4 {[%clk 0:00:06]}  Rxb2 {[%clk 0:00:16]} 51. Ke3 {[%clk 0:00:07]}  Rg2 {[%clk 0:00:16]} 52. Kf3 {[%clk 0:00:06]}  Rc2 {[%clk 0:00:15]} 53. Ke3 {[%clk 0:00:06]}  b2 {[%clk 0:00:15]} 54. Rc5+ {[%clk 0:00:06]}  Ke6 {[%clk 0:00:15]} 55. Rb5 {[%clk 0:00:06]}  Rxc3+ {[%clk 0:00:15]} 56. Kd2 {[%clk 0:00:07]}  Rg3 {[%clk 0:00:15]} 57. Rxb2 {[%clk 0:00:07]}  Rg2+ {[%clk 0:00:14]} 58. Kc3 {[%clk 0:00:07]}  Rxb2 {[%clk 0:00:15]} 59. Kxb2 {[%clk 0:00:08]}  Ke5 {[%clk 0:00:16]} 60. Kc3 {[%clk 0:00:09]}  Kf4 {[%clk 0:00:16]} 61. Kd3 {[%clk 0:00:09]}  Kxg4 {[%clk 0:00:17]} 0-1


[Site "https://www.chess.com"]